[Event "Titled Tuesday Blitz July 05 Late 2022"]
[White "Ladopoulos, Dimitrios"]
[Black "Gatterer, Florian"]
[WhiteFideId "4239580"]
[BlackFideId "811688"]
[WhiteElo "2195"]
[BlackElo "2218"]
[Result "1-0"]
[Round "02"]
[TimeControl "180+1"]
[Date "2022.07.06"]
[WhiteClock "0:00:09"]
[BlackClock "0:00:18"]

1. e4 {[%clk 0:02:53]}  c5 {[%clk 0:02:59]} 2. Nf3 {[%clk 0:02:52]}  Nc6 {[%clk 0:02:59]} 3. d4 {[%clk 0:02:53]}  cxd4 {[%clk 0:02:58]} 4. Nxd4 {[%clk 0:02:54]}  g6 {[%clk 0:02:59]} 5. c4 {[%clk 0:02:54]}  Bg7 {[%clk 0:02:58]} 6. Be3 {[%clk 0:02:54]}  Qb6 {[%clk 0:02:58]} 7. Nb3 {[%clk 0:02:48]}  Qd8 {[%clk 0:02:57]} 8. Qd2 {[%clk 0:02:46]}  Nf6 {[%clk 0:02:56]} 9. f3 {[%clk 0:02:45]}  d6 {[%clk 0:02:56]} 10. Nc3 {[%clk 0:02:44]}  O-O {[%clk 0:02:55]} 11. Be2 {[%clk 0:02:45]}  Be6 {[%clk 0:02:55]} 12. Nd5 {[%clk 0:02:44]}  a5 {[%clk 0:02:46]} 13. Bb6 {[%clk 0:02:07]}  Qd7 {[%clk 0:02:45]} 14. Nxa5 {[%clk 0:02:00]}  Nxa5 {[%clk 0:02:35]} 15. Bxa5 {[%clk 0:02:01]}  Bxd5 {[%clk 0:02:16]} 16. cxd5 {[%clk 0:01:50]}  Nh5 {[%clk 0:02:08]} 17. Bb6 {[%clk 0:01:33]}  f5 {[%clk 0:01:50]} 18. O-O {[%clk 0:00:44]}  fxe4 {[%clk 0:01:46]} 19. fxe4 {[%clk 0:00:45]}  Nf4 {[%clk 0:01:45]} 20. Rxf4 {[%clk 0:00:40]}  Rxf4 {[%clk 0:01:40]} 21. Qxf4 {[%clk 0:00:41]}  Bxb2 {[%clk 0:01:37]} 22. Rf1 {[%clk 0:00:38]}  Be5 {[%clk 0:01:36]} 23. Qf7+ {[%clk 0:00:35]}  Kh8 {[%clk 0:01:35]} 24. Be3 {[%clk 0:00:34]}  Bg7 {[%clk 0:01:31]} 25. h3 {[%clk 0:00:13]}  Rxa2 {[%clk 0:01:23]} 26. Bg4 {[%clk 0:00:12]}  Qd8 {[%clk 0:01:15]} 27. Rc1 {[%clk 0:00:12]}  Ra8 {[%clk 0:01:13]} 28. Qe6 {[%clk 0:00:10]}  b5 {[%clk 0:01:04]} 29. Rb1 {[%clk 0:00:08]}  Be5 {[%clk 0:01:00]} 30. Bg5 {[%clk 0:00:05]}  Ra7 {[%clk 0:00:52]} 31. Be2 {[%clk 0:00:05]}  b4 {[%clk 0:00:51]} 32. Be3 {[%clk 0:00:03]}  Rb7 {[%clk 0:00:48]} 33. Bc4 {[%clk 0:00:03]}  b3 {[%clk 0:00:44]} 34. Rxb3 {[%clk 0:00:03]}  Rxb3 {[%clk 0:00:44]} 35. Bxb3 {[%clk 0:00:04]}  Qa5 {[%clk 0:00:44]} 36. Qc8+ {[%clk 0:00:03]}  Kg7 {[%clk 0:00:43]} 37. Bf2 {[%clk 0:00:03]}  Qd2 {[%clk 0:00:43]} 38. Qc2 {[%clk 0:00:02]}  Qf4 {[%clk 0:00:42]} 39. g3 {[%clk 0:00:02]}  Qf3 {[%clk 0:00:42]} 40. Bc4 {[%clk 0:00:02]}  Bxg3 {[%clk 0:00:41]} 41. Bd4+ {[%clk 0:00:03]}  Kh6 {[%clk 0:00:40]} 42. Qe2 {[%clk 0:00:03]}  Qa3 {[%clk 0:00:37]} 43. Qe3+ {[%clk 0:00:04]}  Qxe3+ {[%clk 0:00:34]} 44. Bxe3+ {[%clk 0:00:04]}  Kg7 {[%clk 0:00:35]} 45. Kg2 {[%clk 0:00:05]}  Be5 {[%clk 0:00:34]} 46. Kf3 {[%clk 0:00:06]}  Kf6 {[%clk 0:00:35]} 47. Kg4 {[%clk 0:00:06]}  Bc3 {[%clk 0:00:33]} 48. Bg5+ {[%clk 0:00:06]}  Kf7 {[%clk 0:00:33]} 49. Bd3 {[%clk 0:00:06]}  h5+ {[%clk 0:00:33]} 50. Kf3 {[%clk 0:00:06]}  Bb2 {[%clk 0:00:33]} 51. Bf4 {[%clk 0:00:06]}  Bd4 {[%clk 0:00:33]} 52. Bb5 {[%clk 0:00:06]}  Bf6 {[%clk 0:00:33]} 53. Bd7 {[%clk 0:00:07]}  Bd4 {[%clk 0:00:32]} 54. Be6+ {[%clk 0:00:08]}  Kf6 {[%clk 0:00:32]} 55. h4 {[%clk 0:00:08]}  Kg7 {[%clk 0:00:28]} 56. Bg5 {[%clk 0:00:09]}  Bf6 {[%clk 0:00:28]} 57. Bxf6+ {[%clk 0:00:08]}  exf6 {[%clk 0:00:29]} 58. Kf4 {[%clk 0:00:07]}  Kf8 {[%clk 0:00:27]} 59. Bd7 {[%clk 0:00:07]}  Kg7 {[%clk 0:00:27]} 60. Be8 {[%clk 0:00:07]}  Kh6 {[%clk 0:00:27]} 61. Kf3 {[%clk 0:00:07]}  Kg7 {[%clk 0:00:23]} 62. Ke3 {[%clk 0:00:07]}  Kh6 {[%clk 0:00:23]} 63. Kd4 {[%clk 0:00:07]}  Kg7 {[%clk 0:00:22]} 64. Kc4 {[%clk 0:00:08]}  Kh6 {[%clk 0:00:22]} 65. Kb5 {[%clk 0:00:08]}  g5 {[%clk 0:00:22]} 66. hxg5+ {[%clk 0:00:08]}  fxg5 {[%clk 0:00:19]} 67. e5 {[%clk 0:00:04]}  g4 {[%clk 0:00:17]} 68. exd6 {[%clk 0:00:03]}  g3 {[%clk 0:00:17]} 69. d7 {[%clk 0:00:04]}  g2 {[%clk 0:00:18]} 70. d8=Q {[%clk 0:00:04]}  g1=Q {[%clk 0:00:18]} 71. Qf6+ {[%clk 0:00:05]}  Kh7 {[%clk 0:00:17]} 72. Qf7+ {[%clk 0:00:05]}  Kh6 {[%clk 0:00:17]} 73. Qxh5+ {[%clk 0:00:05]}  Kg7 {[%clk 0:00:17]} 74. Qg6+ {[%clk 0:00:05]}  Qxg6 {[%clk 0:00:15]} 75. Bxg6 {[%clk 0:00:06]}  Kxg6 {[%clk 0:00:16]} 76. Kc6 {[%clk 0:00:06]}  Kf7 {[%clk 0:00:16]} 77. Kc7 {[%clk 0:00:07]}  Kf6 {[%clk 0:00:17]} 78. d6 {[%clk 0:00:08]}  Ke5 {[%clk 0:00:17]} 79. d7 {[%clk 0:00:09]}  Ke4 {[%clk 0:00:18]} 80. d8=Q {[%clk 0:00:09]} 1-0


[Site "https://www.chess.com"]

[Event "Titled Tuesday Blitz July 05 Late 2022"]
[White "Leiva, Gianmarco"]
[Black "Deac, Bogdan-Daniel"]
[WhiteFideId "3804399"]
[BlackFideId "1226380"]
[WhiteElo "2323"]
[BlackElo "2648"]
[Result "1-0"]
[Round "02"]
[TimeControl "180+1"]
[Date "2022.07.05"]
[WhiteClock "0:00:04"]
[BlackClock "0:00:01"]

1. e4 {[%clk 0:02:59]}  c6 {[%clk 0:02:36]} 2. Nf3 {[%clk 0:02:57]}  d5 {[%clk 0:02:37]} 3. d3 {[%clk 0:02:57]}  Nd7 {[%clk 0:02:35]} 4. Nc3 {[%clk 0:02:46]}  Ngf6 {[%clk 0:02:35]} 5. e5 {[%clk 0:02:44]}  d4 {[%clk 0:02:35]} 6. Ne2 {[%clk 0:02:40]}  Nxe5 {[%clk 0:02:32]} 7. Nexd4 {[%clk 0:02:34]}  Ng6 {[%clk 0:02:30]} 8. g3 {[%clk 0:02:16]}  e5 {[%clk 0:02:29]} 9. Nb3 {[%clk 0:02:16]}  e4 {[%clk 0:01:51]} 10. dxe4 {[%clk 0:02:16]}  Qxd1+ {[%clk 0:01:47]} 11. Kxd1 {[%clk 0:02:17]}  Nxe4 {[%clk 0:01:44]} 12. Be3 {[%clk 0:02:17]}  Bg4 {[%clk 0:01:41]} 13. Be2 {[%clk 0:02:14]}  O-O-O+ {[%clk 0:01:40]} 14. Ke1 {[%clk 0:02:04]}  Bb4+ {[%clk 0:01:29]} 15. c3 {[%clk 0:01:40]}  Nxc3 {[%clk 0:01:29]} 16. bxc3 {[%clk 0:01:41]}  Bxc3+ {[%clk 0:01:29]} 17. Nfd2 {[%clk 0:01:41]}  Bxe2 {[%clk 0:01:29]} 18. Kxe2 {[%clk 0:01:41]}  Bxa1 {[%clk 0:01:29]} 19. Rxa1 {[%clk 0:01:42]}  a6 {[%clk 0:01:08]} 20. a4 {[%clk 0:01:35]}  Rhe8 {[%clk 0:01:04]} 21. h4 {[%clk 0:00:53]}  Ne7 {[%clk 0:00:56]} 22. Nc4 {[%clk 0:00:36]}  Nd5 {[%clk 0:00:49]} 23. a5 {[%clk 0:00:32]}  Nxe3 {[%clk 0:00:32]} 24. fxe3 {[%clk 0:00:22]}  Kc7 {[%clk 0:00:32]} 25. Rf1 {[%clk 0:00:18]}  f6 {[%clk 0:00:31]} 26. Rf4 {[%clk 0:00:16]}  Rd5 {[%clk 0:00:29]} 27. Rg4 {[%clk 0:00:16]}  Re7 {[%clk 0:00:24]} 28. Nbd2 {[%clk 0:00:11]}  Rb5 {[%clk 0:00:18]} 29. Rf4 {[%clk 0:00:10]}  Rc5 {[%clk 0:00:14]} 30. Rd4 {[%clk 0:00:10]}  Rd7 {[%clk 0:00:11]} 31. Re4 {[%clk 0:00:07]}  Rb5 {[%clk 0:00:09]} 32. Re8 {[%clk 0:00:07]}  Rbd5 {[%clk 0:00:06]} 33. Ne4 {[%clk 0:00:05]}  Rd8 {[%clk 0:00:06]} 34. Re7+ {[%clk 0:00:05]}  R5d7 {[%clk 0:00:06]} 35. Re6 {[%clk 0:00:05]}  Kb8 {[%clk 0:00:06]} 36. Nc5 {[%clk 0:00:04]}  Rd5 {[%clk 0:00:06]} 37. Ne4 {[%clk 0:00:03]}  Rb5 {[%clk 0:00:06]} 38. Re7 {[%clk 0:00:03]}  Rb4 {[%clk 0:00:06]} 39. Ned6 {[%clk 0:00:03]}  g5 {[%clk 0:00:06]} 40. hxg5 {[%clk 0:00:03]}  fxg5 {[%clk 0:00:06]} 41. g4 {[%clk 0:00:03]}  h6 {[%clk 0:00:06]} 42. Rh7 {[%clk 0:00:03]}  Rb1 {[%clk 0:00:04]} 43. e4 {[%clk 0:00:03]}  Rg1 {[%clk 0:00:04]} 44. Kf3 {[%clk 0:00:03]}  Rf1+ {[%clk 0:00:04]} 45. Ke2 {[%clk 0:00:03]}  Ra1 {[%clk 0:00:04]} 46. e5 {[%clk 0:00:03]}  Ra2+ {[%clk 0:00:02]} 47. Ke3 {[%clk 0:00:04]}  Ra1 {[%clk 0:00:01]} 48. e6 {[%clk 0:00:04]} 1-0


[Site "https://www.chess.com"]

[Event "Titled Tuesday Blitz July 05 Late 2022"]
[White "Lobanov, Sergei"]
[Black "Janaszak, Dawid"]
[WhiteFideId "24183750"]
[BlackFideId "1119206"]
[WhiteElo "2524"]
[BlackElo "2199"]
[Result "1-0"]
[Round "02"]
[TimeControl "180+1"]
[Date "2022.07.05"]
[WhiteClock "0:00:06"]
[BlackClock "0:00:06"]

1. e4 {[%clk 0:03:00]}  c5 {[%clk 0:03:00]} 2. Nf3 {[%clk 0:03:01]}  Nc6 {[%clk 0:03:00]} 3. Bb5 {[%clk 0:03:00]}  d6 {[%clk 0:02:59]} 4. c3 {[%clk 0:02:56]}  Nf6 {[%clk 0:02:56]} 5. e5 {[%clk 0:02:52]}  dxe5 {[%clk 0:02:56]} 6. Nxe5 {[%clk 0:02:50]}  Qd5 {[%clk 0:02:52]} 7. Nxc6 {[%clk 0:02:36]}  bxc6 {[%clk 0:02:48]} 8. Be2 {[%clk 0:02:35]}  Bf5 {[%clk 0:02:34]} 9. O-O {[%clk 0:02:10]}  Be4 {[%clk 0:02:29]} 10. c4 {[%clk 0:01:59]}  Qd7 {[%clk 0:02:08]} 11. Nc3 {[%clk 0:01:43]}  Bf5 {[%clk 0:02:06]} 12. b3 {[%clk 0:01:19]}  e6 {[%clk 0:02:06]} 13. Ba3 {[%clk 0:01:19]}  Bd6 {[%clk 0:01:56]} 14. Na4 {[%clk 0:01:15]}  Qe7 {[%clk 0:01:44]} 15. Bf3 {[%clk 0:01:15]}  Rc8 {[%clk 0:01:42]} 16. Qe2 {[%clk 0:01:16]}  O-O {[%clk 0:01:37]} 17. Qe3 {[%clk 0:01:13]}  Nd7 {[%clk 0:01:34]} 18. g3 {[%clk 0:01:12]}  Rfd8 {[%clk 0:01:28]} 19. Rad1 {[%clk 0:01:08]}  e5 {[%clk 0:01:04]} 20. Rfe1 {[%clk 0:01:05]}  Bc2 {[%clk 0:01:00]} 21. Rc1 {[%clk 0:01:03]}  Bg6 {[%clk 0:00:59]} 22. Bg2 {[%clk 0:00:52]}  Qf8 {[%clk 0:00:58]} 23. Nc3 {[%clk 0:00:49]}  Nf6 {[%clk 0:00:53]} 24. h3 {[%clk 0:00:46]}  h6 {[%clk 0:00:50]} 25. Na4 {[%clk 0:00:42]}  Nd7 {[%clk 0:00:48]} 26. Bb2 {[%clk 0:00:42]}  Re8 {[%clk 0:00:44]} 27. Kh2 {[%clk 0:00:33]}  Qe7 {[%clk 0:00:43]} 28. Nc3 {[%clk 0:00:31]}  Nf6 {[%clk 0:00:42]} 29. Na4 {[%clk 0:00:28]}  Qf8 {[%clk 0:00:41]} 30. d3 {[%clk 0:00:27]}  Nd7 {[%clk 0:00:38]} 31. Rcd1 {[%clk 0:00:27]}  Nb6 {[%clk 0:00:35]} 32. Nc3 {[%clk 0:00:26]}  Red8 {[%clk 0:00:32]} 33. Ne4 {[%clk 0:00:26]}  Be7 {[%clk 0:00:33]} 34. Bxe5 {[%clk 0:00:26]}  f6 {[%clk 0:00:29]} 35. Bb2 {[%clk 0:00:25]}  Rd7 {[%clk 0:00:28]} 36. h4 {[%clk 0:00:24]}  Rcd8 {[%clk 0:00:28]} 37. Bh3 {[%clk 0:00:24]}  f5 {[%clk 0:00:28]} 38. Nc3 {[%clk 0:00:23]}  Bf6 {[%clk 0:00:28]} 39. Qe6+ {[%clk 0:00:19]}  Kh8 {[%clk 0:00:28]} 40. Qxc6 {[%clk 0:00:17]}  Rxd3 {[%clk 0:00:24]} 41. Rxd3 {[%clk 0:00:17]}  Rxd3 {[%clk 0:00:25]} 42. Bxf5 {[%clk 0:00:18]}  Bxc3 {[%clk 0:00:17]} 43. Bxd3 {[%clk 0:00:14]}  Qxf2+ {[%clk 0:00:16]} 44. Kh3 {[%clk 0:00:12]}  Bf5+ {[%clk 0:00:08]} 45. Bxf5 {[%clk 0:00:12]}  Qxf5+ {[%clk 0:00:09]} 46. Kg2 {[%clk 0:00:05]}  Bxe1 {[%clk 0:00:08]} 47. Qe8+ {[%clk 0:00:05]}  Kh7 {[%clk 0:00:08]} 48. Qxe1 {[%clk 0:00:06]}  Qc2+ {[%clk 0:00:08]} 49. Qf2 {[%clk 0:00:07]}  Qb1 {[%clk 0:00:09]} 50. Qd2 {[%clk 0:00:04]}  Qxa2 {[%clk 0:00:06]} 51. Qc3 {[%clk 0:00:05]}  Kg6 {[%clk 0:00:06]} 52. Qxg7+ {[%clk 0:00:05]}  Kf5 {[%clk 0:00:06]} 53. Qe5+ {[%clk 0:00:05]}  Kg6 {[%clk 0:00:07]} 54. g4 {[%clk 0:00:05]}  Qxb3 {[%clk 0:00:06]} 55. Qf5# {[%clk 0:00:06]} 1-0


[Site "https://www.chess.com"]

[Event "Titled Tuesday Blitz July 05 Late 2022"]
[White "Makarian, Rudik"]
[Black "Kopczynski, Michal"]
[WhiteFideId "44105681"]
[BlackFideId "1124200"]
[WhiteElo "2403"]
[BlackElo "2235"]
[Result "1-0"]
[Round "02"]
[TimeControl "180+1"]
[Date "2022.07.06"]
[WhiteClock "0:00:14"]
[BlackClock "0:00:06"]

1. d3 {[%clk 0:02:59]}  g6 {[%clk 0:02:51]} 2. g3 {[%clk 0:02:59]}  Bg7 {[%clk 0:02:51]} 3. Bg2 {[%clk 0:03:00]}  d6 {[%clk 0:02:52]} 4. c4 {[%clk 0:02:59]}  e5 {[%clk 0:02:52]} 5. Nc3 {[%clk 0:03:00]}  Ne7 {[%clk 0:02:52]} 6. h4 {[%clk 0:02:58]}  h5 {[%clk 0:02:50]} 7. Nf3 {[%clk 0:02:58]}  Nbc6 {[%clk 0:02:50]} 8. Rb1 {[%clk 0:02:56]}  O-O {[%clk 0:02:49]} 9. O-O {[%clk 0:02:55]}  Bg4 {[%clk 0:02:47]} 10. b4 {[%clk 0:02:55]}  Qd7 {[%clk 0:02:47]} 11. b5 {[%clk 0:02:53]}  Nd4 {[%clk 0:02:43]} 12. e3 {[%clk 0:02:51]}  Ne6 {[%clk 0:02:34]} 13. Qb3 {[%clk 0:02:43]}  Nc5 {[%clk 0:02:15]} 14. Qc2 {[%clk 0:02:42]}  Qf5 {[%clk 0:02:13]} 15. Ne1 {[%clk 0:02:30]}  Bh3 {[%clk 0:02:04]} 16. Ba3 {[%clk 0:02:28]}  Bxg2 {[%clk 0:02:01]} 17. Kxg2 {[%clk 0:02:29]}  Ne6 {[%clk 0:01:42]} 18. Nd5 {[%clk 0:02:23]}  Nxd5 {[%clk 0:01:32]} 19. cxd5 {[%clk 0:02:24]}  Nd8 {[%clk 0:01:19]} 20. Qxc7 {[%clk 0:02:23]}  e4 {[%clk 0:01:13]} 21. dxe4 {[%clk 0:02:14]}  Qxe4+ {[%clk 0:01:14]} 22. Nf3 {[%clk 0:02:15]}  Qxd5 {[%clk 0:01:09]} 23. Qxd6 {[%clk 0:02:14]}  Qxa2 {[%clk 0:01:02]} 24. Qb4 {[%clk 0:01:47]}  Ne6 {[%clk 0:00:57]} 25. Bb2 {[%clk 0:01:47]}  Bxb2 {[%clk 0:00:53]} 26. Rxb2 {[%clk 0:01:48]}  Qd5 {[%clk 0:00:52]} 27. Rd2 {[%clk 0:01:49]}  Qf5 {[%clk 0:00:50]} 28. Rfd1 {[%clk 0:01:47]}  Rfd8 {[%clk 0:00:36]} 29. Qc4 {[%clk 0:01:11]}  Rdc8 {[%clk 0:00:24]} 30. Qd5 {[%clk 0:01:09]}  Rc5 {[%clk 0:00:21]} 31. Qxb7 {[%clk 0:01:07]}  Rac8 {[%clk 0:00:17]} 32. Rd5 {[%clk 0:01:06]}  Qc2 {[%clk 0:00:14]} 33. Rxc5 {[%clk 0:00:58]}  Qxc5 {[%clk 0:00:15]} 34. Rd7 {[%clk 0:00:55]}  Rc7 {[%clk 0:00:14]} 35. Qb8+ {[%clk 0:00:42]}  Kg7 {[%clk 0:00:12]} 36. Qe8 {[%clk 0:00:23]}  Rxd7 {[%clk 0:00:11]} 37. Qxd7 {[%clk 0:00:23]}  Nf8 {[%clk 0:00:10]} 38. Qb7 {[%clk 0:00:21]}  Ne6 {[%clk 0:00:09]} 39. Qd7 {[%clk 0:00:17]}  Nc7 {[%clk 0:00:09]} 40. Qd3 {[%clk 0:00:17]}  Nxb5 {[%clk 0:00:09]} 41. Ng5 {[%clk 0:00:14]}  Qc6+ {[%clk 0:00:08]} 42. e4 {[%clk 0:00:14]}  Nd6 {[%clk 0:00:07]} 43. Qd4+ {[%clk 0:00:14]}  f6 {[%clk 0:00:06]} 44. Qxa7+ {[%clk 0:00:14]} 1-0


[Site "https://www.chess.com"]

[Event "Titled Tuesday Blitz July 05 Late 2022"]
[White "Nazaretyan, Tigran"]
[Black "Sjugirov, Sanan"]
[WhiteFideId "24162345"]
[BlackFideId "4189302"]
[WhiteElo "2179"]
[BlackElo "2609"]
[Result "0-1"]
[Round "02"]
[TimeControl "180+1"]
[Date "2022.07.05"]
[WhiteClock "0:00:58"]
[BlackClock "0:01:19"]

1. d4 {[%clk 0:03:00]}  Nf6 {[%clk 0:02:59]} 2. c4 {[%clk 0:02:59]}  e6 {[%clk 0:03:00]} 3. Nf3 {[%clk 0:02:59]}  b6 {[%clk 0:03:00]} 4. a3 {[%clk 0:02:58]}  Bb7 {[%clk 0:02:59]} 5. Nc3 {[%clk 0:02:58]}  Ne4 {[%clk 0:03:00]} 6. Nxe4 {[%clk 0:02:57]}  Bxe4 {[%clk 0:03:01]} 7. Nd2 {[%clk 0:02:58]}  Bb7 {[%clk 0:02:57]} 8. e4 {[%clk 0:02:57]}  g6 {[%clk 0:02:53]} 9. Bd3 {[%clk 0:02:54]}  Bg7 {[%clk 0:02:54]} 10. Nf3 {[%clk 0:02:54]}  d6 {[%clk 0:02:53]} 11. Bg5 {[%clk 0:02:50]}  Qd7 {[%clk 0:02:53]} 12. Qd2 {[%clk 0:02:49]}  h6 {[%clk 0:02:53]} 13. Be3 {[%clk 0:02:48]}  Nc6 {[%clk 0:02:52]} 14. d5 {[%clk 0:02:41]}  Ne7 {[%clk 0:02:34]} 15. O-O {[%clk 0:02:30]}  g5 {[%clk 0:02:27]} 16. Rac1 {[%clk 0:02:20]}  O-O {[%clk 0:02:26]} 17. b4 {[%clk 0:02:19]}  Ng6 {[%clk 0:02:23]} 18. Bb1 {[%clk 0:02:09]}  Rad8 {[%clk 0:01:53]} 19. h4 {[%clk 0:02:04]}  g4 {[%clk 0:01:51]} 20. Nh2 {[%clk 0:02:03]}  h5 {[%clk 0:01:51]} 21. g3 {[%clk 0:02:02]}  c6 {[%clk 0:01:47]} 22. Bh6 {[%clk 0:02:00]}  Qe7 {[%clk 0:01:41]} 23. Bg5 {[%clk 0:01:59]}  Bf6 {[%clk 0:01:30]} 24. Bxf6 {[%clk 0:01:53]}  Qxf6 {[%clk 0:01:31]} 25. f3 {[%clk 0:01:53]}  gxf3 {[%clk 0:01:27]} 26. Rxf3 {[%clk 0:01:53]}  Qg7 {[%clk 0:01:26]} 27. Qg5 {[%clk 0:01:49]}  Ne5 {[%clk 0:01:24]} 28. Rf6 {[%clk 0:01:43]}  Qxg5 {[%clk 0:01:21]} 29. hxg5 {[%clk 0:01:44]}  cxd5 {[%clk 0:01:20]} 30. exd5 {[%clk 0:01:43]}  exd5 {[%clk 0:01:20]} 31. cxd5 {[%clk 0:01:35]}  Bxd5 {[%clk 0:01:21]} 32. Rd1 {[%clk 0:01:34]}  Be6 {[%clk 0:01:20]} 33. Nf3 {[%clk 0:01:32]}  Nxf3+ {[%clk 0:01:19]} 34. Rxf3 {[%clk 0:01:31]}  Bg4 {[%clk 0:01:20]} 35. Rdf1 {[%clk 0:01:26]}  Bxf3 {[%clk 0:01:17]} 36. Rxf3 {[%clk 0:01:27]}  Rc8 {[%clk 0:01:16]} 37. Bf5 {[%clk 0:01:19]}  Rce8 {[%clk 0:01:14]} 38. Rd3 {[%clk 0:01:07]}  Re5 {[%clk 0:01:14]} 39. Rf3 {[%clk 0:01:04]}  Kg7 {[%clk 0:01:14]} 40. Kg2 {[%clk 0:01:04]}  d5 {[%clk 0:01:14]} 41. Kh3 {[%clk 0:01:04]}  d4 {[%clk 0:01:14]} 42. Kh4 {[%clk 0:01:04]}  Rd8 {[%clk 0:01:14]} 43. Bd3 {[%clk 0:01:02]}  Re3 {[%clk 0:01:14]} 44. Rxe3 {[%clk 0:00:56]}  dxe3 {[%clk 0:01:14]} 45. Be2 {[%clk 0:00:56]}  Rd2 {[%clk 0:01:14]} 46. Bxh5 {[%clk 0:00:55]}  e2 {[%clk 0:01:15]} 47. Bxe2 {[%clk 0:00:55]}  Rxe2 {[%clk 0:01:16]} 48. a4 {[%clk 0:00:55]}  Re4+ {[%clk 0:01:16]} 49. g4 {[%clk 0:00:55]}  Rxb4 {[%clk 0:01:17]} 50. a5 {[%clk 0:00:55]}  bxa5 {[%clk 0:01:17]} 51. g6 {[%clk 0:00:55]}  fxg6 {[%clk 0:01:17]} 52. Kg5 {[%clk 0:00:56]}  Rb5+ {[%clk 0:01:17]} 53. Kf4 {[%clk 0:00:55]}  a4 {[%clk 0:01:17]} 54. Ke4 {[%clk 0:00:56]}  a3 {[%clk 0:01:18]} 55. Kd4 {[%clk 0:00:57]}  a2 {[%clk 0:01:18]} 56. Kc4 {[%clk 0:00:58]}  Rb1 {[%clk 0:01:19]} 0-1


[Site "https://www.chess.com"]

[Event "Titled Tuesday Blitz July 05 Late 2022"]
[White "Pakleza, Zbigniew"]
[Black "Jeet, Jain"]
[WhiteFideId "1119290"]
[BlackFideId "5073022"]
[WhiteElo "2467"]
[BlackElo "2055"]
[Result "1-0"]
[Round "02"]
[TimeControl "180+1"]
[Date "2022.07.05"]
[WhiteClock "0:00:20"]
[BlackClock "0:00:43"]

1. d4 {[%clk 0:03:00]}  Nf6 {[%clk 0:02:57]} 2. Nf3 {[%clk 0:03:01]}  d5 {[%clk 0:02:56]} 3. Bf4 {[%clk 0:03:00]}  Bf5 {[%clk 0:02:51]} 4. c4 {[%clk 0:02:58]}  e6 {[%clk 0:02:46]} 5. Nc3 {[%clk 0:02:57]}  c6 {[%clk 0:02:45]} 6. Qb3 {[%clk 0:02:56]}  b6 {[%clk 0:02:38]} 7. e3 {[%clk 0:02:53]}  Bd6 {[%clk 0:02:35]} 8. Bg3 {[%clk 0:02:49]}  Bxg3 {[%clk 0:02:31]} 9. hxg3 {[%clk 0:02:50]}  h6 {[%clk 0:02:32]} 10. Rc1 {[%clk 0:02:47]}  O-O {[%clk 0:02:27]} 11. Be2 {[%clk 0:02:45]}  Nbd7 {[%clk 0:02:25]} 12. O-O {[%clk 0:02:43]}  Ne4 {[%clk 0:02:21]} 13. cxd5 {[%clk 0:02:26]}  Nxc3 {[%clk 0:02:09]} 14. Rxc3 {[%clk 0:02:20]}  cxd5 {[%clk 0:02:09]} 15. Rfc1 {[%clk 0:02:17]}  Bg4 {[%clk 0:02:03]} 16. Qa3 {[%clk 0:02:01]}  Nf6 {[%clk 0:01:41]} 17. Rc7 {[%clk 0:01:53]}  a5 {[%clk 0:01:40]} 18. Qe7 {[%clk 0:01:42]}  Qxe7 {[%clk 0:01:37]} 19. Rxe7 {[%clk 0:01:43]}  Bxf3 {[%clk 0:01:37]} 20. gxf3 {[%clk 0:01:41]}  Rfc8 {[%clk 0:01:34]} 21. Rec7 {[%clk 0:01:37]}  Rxc7 {[%clk 0:01:30]} 22. Rxc7 {[%clk 0:01:38]}  Rb8 {[%clk 0:01:30]} 23. Bb5 {[%clk 0:01:30]}  Kf8 {[%clk 0:01:29]} 24. Kf1 {[%clk 0:01:06]}  Ne8 {[%clk 0:01:29]} 25. Bxe8 {[%clk 0:01:06]}  Kxe8 {[%clk 0:01:30]} 26. f4 {[%clk 0:01:04]}  b5 {[%clk 0:01:29]} 27. Ke2 {[%clk 0:01:03]}  g5 {[%clk 0:01:24]} 28. f5 {[%clk 0:00:41]}  exf5 {[%clk 0:01:15]} 29. Rc5 {[%clk 0:00:41]}  Ke7 {[%clk 0:01:14]} 30. Rxd5 {[%clk 0:00:40]}  Kf6 {[%clk 0:01:14]} 31. Rd6+ {[%clk 0:00:38]}  Kg7 {[%clk 0:01:14]} 32. Kd3 {[%clk 0:00:36]}  h5 {[%clk 0:01:15]} 33. Rc6 {[%clk 0:00:32]}  h4 {[%clk 0:01:13]} 34. gxh4 {[%clk 0:00:33]}  gxh4 {[%clk 0:01:14]} 35. Rc1 {[%clk 0:00:34]}  Kg6 {[%clk 0:01:12]} 36. d5 {[%clk 0:00:33]}  Kg5 {[%clk 0:01:08]} 37. Rg1+ {[%clk 0:00:32]}  Kh5 {[%clk 0:01:05]} 38. Kd4 {[%clk 0:00:31]}  f6 {[%clk 0:01:04]} 39. d6 {[%clk 0:00:30]}  h3 {[%clk 0:01:04]} 40. Kd5 {[%clk 0:00:29]}  Kh4 {[%clk 0:01:04]} 41. Ke6 {[%clk 0:00:27]}  h2 {[%clk 0:01:04]} 42. Rd1 {[%clk 0:00:24]}  Kh3 {[%clk 0:01:02]} 43. Kxf5 {[%clk 0:00:18]}  Rd8 {[%clk 0:00:43]} 44. d7 {[%clk 0:00:19]}  Rxd7 {[%clk 0:00:43]} 45. Rxd7 {[%clk 0:00:20]} 1-0


[Site "https://www.chess.com"]